bitfinex-derivatives/quotes_SOLF0:USTF0_20241212
["timestamp","ask_amount","ask_price","bid_price","bid_amount"]
[1734000969727,2.1744,229.87,229.85,8.23333692]
[1734000969925,2.02,229.91,229.85,8.23333692]
[1734000971534,2.02,229.91,229.84,2.1745]
[1734000971728,2.1743,229.87,229.86,8.23333692]
[1734000972227,2.1743,229.87,229.84,2.1745]
[1734000972430,2.02,229.91,229.81,5.23334987]
[1734000972431,8.23333692,229.89,229.81,5.23334987]
[1734000972631,8.23333692,229.87,229.81,5.23334987]
[1734000972826,8.23333692,229.87,229.72,4.9995]
[1734000972827,2.175,229.8,229.75,2.1754]
[1734000973033,8.23333692,229.81,229.73,8.23333692]
[1734000974529,2.1753,229.77,229.73,8.23333692]
[1734000975033,2.02,229.82,229.75,8.23333692]
[1734000975228,2.175,229.8,229.75,10.40883692]
[1734000976835,2.1751,229.79,229.75,8.23333692]
[1734000977634,2.02,229.82,229.75,8.23333692]
[1734000977829,1.7312,229.9,229.8,8.23333692]
[1734000978035,2.02,229.89,229.82,8.23333692]
[1734000978225,2.1743,229.87,229.82,8.23333692]
[1734000978426,7.339129,229.89,229.82,8.23333692]
[1734000979636,2.1746,229.84,229.82,8.23333692]
[1734000979938,2.02,229.89,229.82,8.23333692]
[1734000980334,2.1745,229.85,229.82,8.23333692]
[1734000987751,1.7312,229.9,229.76,3.228]
[1734000987752,3.08607,229.92,229.84,8.23333692]
[1734000988049,3.08607,229.92,229.88,8.23333692]
[1734000988237,2.174,229.91,229.88,8.23333692]
[1734000988443,3.08607,229.92,229.88,8.23333692]
[1734000989047,2.1741,229.9,229.88,8.23333692]
[1734000990451,2.174,229.91,229.88,8.23333692]
[1734000991555,2.1741,229.9,229.88,8.23333692]
[1734000991756,1.06607,229.92,229.88,8.23333692]
[1734000992646,2.174,229.91,229.88,8.23333692]
[1734000992851,1.06607,229.92,229.88,8.23333692]
[1734000993247,2.174,229.91,229.88,8.23333692]
[1734000993549,1.06607,229.92,229.88,10.40753692]
[1734000993755,1.06607,229.92,229.9,8.23333692]
[1734000994058,1.06607,229.92,229.9,10.40733692]
[1734000996555,1.06607,229.92,229.91,2.174]
[1734000997159,2.02,230.03,229.91,2.02]
[1734000997353,2.02,230.03,229.98,8.23333692]
[1734000997558,2.173,230.01,229.98,8.23333692]
[1734000997950,1.7032,230.04,229.98,8.23333692]
[1734000997951,2.02,230.04,229.98,8.23333692]
[1734000998363,2.1729,230.02,229.98,8.23333692]
[1734000999358,2.1728,230.03,230.0,8.23333692]
[1734000999960,2.02,230.05,230.0,8.23333692]
[1734001000262,2.02,230.05,229.98,8.23333692]
[1734001001563,2.02,230.05,229.96,8.23333692]
[1734001001564,8.23333692,230.04,229.96,8.23333692]
[1734001002259,8.23333692,230.02,229.91,3.5848]
[1734001002456,8.23333692,230.0,229.93,8.23333692]
[1734001002657,2.02,229.99,229.91,11.81813692]
[1734001002854,2.02,229.99,229.91,9.79813692]
[1734001003764,2.02,229.99,229.93,8.23333692]
[1734001003963,2.02,229.99,229.97,8.23333692]
[1734001007160,2.1727,230.04,229.98,2.1733]
[1734001007367,2.02,230.03,229.99,8.23333692]
[1734001007665,8.23333692,230.05,229.99,8.23333692]
[1734001007859,2.1729,230.02,229.99,8.23333692]
[1734001008662,2.02,230.04,229.99,8.23333692]
[1734001008868,2.173,230.01,229.99,8.23333692]
[1734001012565,1.6844,230.09,229.99,8.23333692]
[1734001012767,2.02,230.08,230.02,8.23333692]
[1734001012969,2.02,230.08,230.04,8.23333692]
[1734001013471,2.1725,230.07,230.04,8.23333692]
[1734001013667,2.02,230.08,230.04,8.23333692]
[1734001014470,2.1724,230.07,230.04,8.23333692]
[1734001017472,2.02,230.08,230.04,8.23333692]
[1734001017766,2.1723,230.09,230.06,8.23333692]
[1734001019262,2.1721,230.11,230.06,8.23333692]
[1734001019467,2.02,230.12,230.06,8.23333692]
[1734001020271,2.1723,230.09,230.06,8.23333692]
[1734001020469,63.37772687,230.14,230.06,10.40583692]
[1734001020662,2.02,230.13,230.06,10.40583692]
[1734001020863,2.1721,230.11,230.08,8.23333692]
[1734001023075,2.1722,230.1,230.08,8.23333692]
[1734001023267,2.1722,230.1,230.06,10.40583692]
[1734001023468,8.23333692,230.13,230.06,8.23333692]
[1734001024174,2.1721,230.11,230.06,8.23333692]
[1734001024374,8.23333692,230.13,230.06,8.23333692]
[1734001025265,2.1723,230.09,230.06,8.23333692]
[1734001025972,2.1722,230.1,230.06,8.23333692]
[1734001026774,2.1723,230.09,230.06,8.23333692]
[1734001028275,2.1723,230.09,230.06,10.40583692]
[1734001028669,62.49414687,230.14,230.08,8.23333692]
[1734001028976,2.02,230.16,230.1,8.23333692]
[1734001029177,2.1719,230.13,230.1,8.23333692]
[1734001029774,2.172,230.12,230.1,8.23333692]
[1734001043382,8.23333692,230.15,230.07,8.23333692]
[1734001043682,8.23333692,230.15,230.0,1.5918]
[1734001043683,8.23333692,230.13,230.03,2.02]
[1734001043979,10.68349974,230.12,230.05,8.23333692]
[1734001044579,2.1724,230.08,230.05,8.23333692]
[1734001045172,2.1725,230.07,230.05,8.23333692]
[1734001047077,8.23333692,230.09,230.0,1.5918]
[1734001047283,8.23333692,230.09,230.02,8.23333692]
[1734001047590,180.70426743,230.12,230.04,8.23333692]
[1734001047885,8.23333692,230.11,230.04,8.23333692]
[1734001048480,177.07476743,230.1,230.04,8.23333692]
[1734001048678,2.1726,230.05,230.04,8.23333692]
[1734001050278,185.30810435,230.11,230.02,8.23333692]
[1734001050482,2.1727,230.04,230.02,8.23333692]
[1734001050875,177.07476743,230.1,230.02,8.23333692]
[1734001051084,2.1727,230.05,230.02,8.23333692]
[1734001051777,2.1725,230.07,230.04,8.23333692]
[1734001053183,8.23333692,230.1,230.04,8.23333692]
[1734001053587,185.30810435,230.1,230.02,8.23333692]
[1734001054889,2.1726,230.06,230.02,8.23333692]
[1734001055088,2.1726,230.06,230.04,8.23333692]
[1734001055588,3.6295,230.12,230.04,8.23333692]
[1734001055885,2.1724,230.08,230.06,8.23333692]
[1734001056491,177.07476743,230.16,230.06,8.23333692]
[1734001056693,2.02,230.17,230.11,8.23333692]
[1734001056884,2.172,230.12,230.06,2.1724]
[1734001057095,2.172,230.12,230.1,8.23333692]
[1734001058190,2.172,230.12,230.02,2.02]
[1734001058591,2.1721,230.11,230.08,8.23333692]
[1734001058987,8.23333692,230.14,230.07,8.23333692]
[1734001059192,8.69750867,230.13,230.07,8.23333692]
[1734001059792,2.02,230.12,230.07,8.23333692]
[1734001060595,2.1722,230.1,230.07,8.23333692]
[1734001061098,2.02,230.12,230.09,8.23333692]
[1734001061297,2.02,230.12,230.11,8.23333692]
[1734001061598,8.6983653,230.12,230.11,8.23333692]
[1734001064292,8.6983653,230.12,230.09,8.23333692]
[1734001064498,11.83800439,230.12,230.11,8.23333692]
[1734001064694,8.6985977,230.12,230.11,8.23333692]
[1734001064893,177.07476743,230.16,230.11,8.23333692]
[1734001065092,2.1719,230.14,230.11,8.23333692]
[1734001065295,8.69820169,230.13,230.11,8.23333692]
[1734001065801,10.87010169,230.13,230.11,8.23333692]
[1734001066004,2.1719,230.13,230.11,8.23333692]
[1734001072306,2.172,230.12,230.11,8.23333692]
[1734001075109,2.1719,230.14,230.11,8.23333692]
[1734001075404,2.02,230.17,230.11,8.23333692]
[1734001075609,20.52929861,230.18,230.15,10.40503692]
[1734001075907,20.52929861,230.18,230.01,4.346]
[1734001075908,177.07476743,230.21,230.17,8.23333692]
[1734001076108,177.07476743,230.24,230.2,8.23333692]
[1734001076304,2.1711,230.22,230.2,8.23333692]
[1734001076610,22.69526219,230.22,230.2,8.23333692]
[1734001076800,2.02,230.25,230.2,8.23333692]
[1734001076801,10.86443358,230.21,230.2,8.23333692]
[1734001077103,2.1711,230.21,230.2,8.23333692]
[1734001077301,2.171,230.22,230.2,8.23333692]
[1734001077505,2.171,230.22,230.21,8.23333692]
[1734001082307,2.171,230.23,230.21,8.23333692]
[1734001083712,462.64818271,230.36,230.21,10.25333692]
[1734001083916,462.64818271,230.36,230.29,8.23333692]
[1734001083917,54.73850262,230.35,230.29,8.23333692]
[1734001084111,2.1702,230.31,230.29,8.23333692]
[1734001084415,8.66788504,230.3,230.29,8.23333692]
[1734001085314,2.1702,230.31,230.29,8.23333692]
[1734001085811,2.1701,230.32,230.29,8.23333692]
[1734001086011,210.53301576,230.35,230.22,1.5859]
[1734001086214,20.4163541,230.34,230.3,8.23333692]
[1734001086411,20.4163541,230.33,230.3,2.08344413]
[1734001086612,8.64756629,230.32,230.3,2.08344413]
[1734001086915,60.40336694,230.35,230.3,2.08344413]
[1734001087213,20.41665777,230.34,230.3,2.08344413]
[1734001087410,8.64769778,230.33,230.3,2.08344413]
[1734001087614,2.1702,230.31,230.3,2.08344413]
[1734001088006,177.07476743,230.36,230.3,2.08344413]
[1734001088212,2.1696,230.37,230.34,8.23333692]
[1734001088410,2.1696,230.37,230.28,2.02]
[1734001088411,2.1696,230.37,230.36,8.23333692]
[1734001089414,2.1695,230.39,230.36,8.23333692]
[1734001089715,2.1695,230.39,230.38,8.23333692]
[1734001094509,2.02,230.45,230.33,2.02]
[1734001094818,2.02,230.45,230.37,8.23333692]
[1734001095117,10.25333692,230.45,230.37,8.23333692]
[1734001095914,2.1695,230.38,230.37,8.23333692]
[1734001097119,2.1697,230.36,230.31,2.02]
[1734001097421,2.1697,230.36,230.35,8.23333692]
[1734001098216,2.1695,230.39,230.35,8.23333692]
[1734001098719,10.25333692,230.45,230.38,8.23333692]
[1734001098923,2.1694,230.39,230.38,8.23333692]
[1734001100722,2.1694,230.39,230.38,2.16334492]
[1734001104420,8.23333692,230.41,230.31,1.72]
[1734001104632,8.23333692,230.41,230.33,8.23333692]
[1734001104633,8.58552457,230.4,230.33,8.23333692]
[1734001105632,2.1699,230.34,230.33,8.23333692]
[1734001106225,2.02,230.38,230.32,8.23333692]
[1734001106626,2.02,230.38,230.32,2.24050751]
[1734001106627,2.17,230.33,230.32,2.24050751]
[1734001108134,2.1698,230.35,230.32,2.24050751]
[1734001108332,2.1698,230.35,230.34,8.23333692]
[1734001110029,2.1697,230.37,230.34,8.23333692]
[1734001110232,2.1697,230.37,230.36,8.23333692]
[1734001115634,182.36706691,230.46,230.36,8.23333692]
[1734001115835,182.36706691,230.46,230.39,8.23333692]
[1734001115836,2.1693,230.41,230.39,8.23333692]
[1734001117233,2.1691,230.43,230.39,8.23333692]
[1734001117436,2.1691,230.43,230.41,8.23333692]
[1734001119445,52.09552249,230.47,230.41,8.23333692]
[1734001119446,2.1691,230.42,230.41,8.23333692]
[1734001120539,10.80598727,230.42,230.41,8.23333692]
[1734001121240,203.07146431,230.46,230.36,2.0]
[1734001121442,28.63852084,230.45,230.33,2.0]
[1734001121640,28.63852084,230.45,230.29,1.6792]
[1734001121641,8.23333692,230.41,230.29,1.6792]
[1734001121846,2.0,230.4,230.33,8.23333692]
[1734001122043,2.17,230.34,230.33,8.23333692]
[1734001123645,203.07146431,230.36,230.33,8.23333692]
[1734001123849,203.07146431,230.36,230.35,8.23333692]
[1734001124143,177.07476743,230.38,230.35,8.23333692]
[1734001124347,179.24436743,230.38,230.37,8.23333692]
[1734001124946,177.07476743,230.38,230.37,8.23333692]
[1734001125250,177.07476743,230.39,230.37,8.23333692]
[1734001125548,177.07476743,230.39,230.38,8.23333692]
[1734001126349,177.07476743,230.39,230.34,2.1699]
[1734001126648,179.24426743,230.39,230.38,8.23333692]
[1734001128545,199.7298759,230.39,230.38,8.23333692]
[1734001128846,225.77055059,230.39,230.38,8.23333692]
[1734001131350,22.65510847,230.39,230.38,8.23333692]
[1734001136449,2.1695,230.39,230.38,8.23333692]
[1734001138857,183.3987053,230.41,230.38,8.23333692]
[1734001139056,183.3987053,230.41,230.4,8.23333692]
[1734001139257,203.92494582,230.41,230.4,8.23333692]
[1734001139759,229.96755492,230.41,230.4,8.23333692]
[1734001140258,36.90595737,230.41,230.4,8.23333692]
[1734001140556,26.0426091,230.41,230.4,8.23333692]
[1734001140760,185.3985053,230.43,230.4,8.23333692]
[1734001140960,8.69333537,230.42,230.4,8.23333692]
[1734001141263,34.73594447,230.42,230.4,8.23333692]
[1734001141463,26.0426091,230.42,230.4,8.23333692]
[1734001141658,183.3985053,230.43,230.4,8.23333692]
[1734001141855,8.692849,230.42,230.4,8.23333692]
[1734001142250,189.9222543,230.42,230.38,2.1694]
[1734001142452,20.5235035,230.41,230.33,2.0]
[1734001142759,8.69294052,230.4,230.38,8.23333692]
[1734001143357,189.92234582,230.4,230.38,8.23333692]
[1734001143556,8.69348772,230.39,230.38,8.23333692]
[1734001145657,8.69348772,230.39,230.29,3.6792]
[1734001145963,181.2294053,230.38,230.35,8.23333692]
[1734001146152,20.52548487,230.37,230.35,8.23333692]
[1734001146352,8.69348772,230.36,230.35,8.23333692]
[1734001146561,8.69348772,230.39,230.29,3.6792]
[1734001146758,20.52576035,230.38,230.32,8.23333692]
[1734001147059,191.46274222,230.4,230.32,8.23333692]
[1734001147060,20.52576035,230.37,230.32,8.23333692]
[1734001147261,11.83227263,230.36,230.32,8.23333692]
[1734001147458,8.69348772,230.35,230.32,8.23333692]
[1734001147858,207.29690011,230.39,230.32,8.23333692]
[1734001148158,28.75823183,230.38,230.28,0.49372]
[1734001148360,229.43569502,230.37,230.3,8.23333692]
[1734001148659,20.52489491,230.36,230.3,8.23333692]
[1734001148860,22.52489491,230.35,230.3,8.23333692]
[1734001149062,20.52489491,230.34,230.3,8.23333692]
[1734001149365,20.52489491,230.33,230.3,8.23333692]
[1734001149562,2.1702,230.31,230.3,8.23333692]
[1734001149758,10.86371254,230.31,230.3,8.23333692]
[1734001150759,10.86371254,230.31,230.28,0.49372]
[1734001150760,22.6862698,230.31,230.28,0.49372]
[1734001150964,10.86381254,230.3,230.29,8.23333692]
[1734001151665,22.6863698,230.3,230.29,8.23333692]
[1734001152360,20.5160698,230.3,230.29,8.23333692]
[1734001152557,8.69351254,230.3,230.29,8.23333692]
[1734001155058,20.50653847,230.3,230.29,8.23333692]
[1734001156259,8.69351254,230.3,230.29,8.23333692]
[1734001158367,10.86381254,230.3,230.29,8.23333692]
[1734001158873,2.1703,230.3,230.29,8.23333692]
[1734001160070,2.1703,230.3,230.25,2.1707]
[1734001160272,2.1703,230.3,230.29,8.23333692]
[1734001164978,2.0,230.33,230.19,3.59361]
[1734001165169,8.23333692,230.32,230.26,8.23333692]
[1734001165371,8.23333692,230.32,230.19,5.59361]
[1734001165667,2.0,230.33,230.22,8.23333692]
[1734001165668,8.23333692,230.3,230.22,8.23333692]
[1734001165870,8.23333692,230.26,230.19,8.65434692]
[1734001166074,2.171,230.22,230.19,8.65434692]
[1734001166481,2.1712,230.2,230.19,0.42101]
[1734001166776,2.0,230.25,230.19,0.42101]
[1734001166978,10.66528958,230.25,230.19,0.42101]
[1734001167180,2.171,230.23,230.19,0.42101]
[1734001167375,13.7927887,230.25,230.19,0.42101]
[1734001167376,2.0,230.25,230.19,0.42101]
[1734001167876,2.1711,230.22,230.19,0.42101]
[1734001169376,2.0,230.25,230.19,0.42101]
[1734001169676,22.4321181,230.25,230.19,8.65434692]
[1734001169974,20.4321181,230.24,230.19,8.65434692]
[1734001170277,2.1711,230.22,230.19,8.65434692]
[1734001171076,2.0,230.25,230.19,8.65434692]
[1734001171282,2.1711,230.21,230.19,8.65434692]
[1734001172584,4.171,230.23,230.19,8.23333692]
[1734001172782,4.171,230.23,230.21,8.23333692]
[1734001175084,2.171,230.22,230.19,8.23333692]
[1734001178579,2.1711,230.21,230.19,8.23333692]
[1734001179781,2.0,230.23,230.19,8.23333692]
[1734001179985,1.5811,230.28,230.21,8.23333692]
[1734001180181,8.23333692,230.34,230.26,8.23333692]
[1734001180381,2.0,230.33,230.26,8.23333692]
[1734001180681,2.1705,230.28,230.26,8.23333692]
[1734001181681,2.0,230.3,230.26,8.23333692]
[1734001181887,2.1706,230.27,230.26,8.23333692]
[1734001182082,10.23333692,230.3,230.24,8.23333692]
[1734001183389,2.1707,230.26,230.24,8.23333692]
[1734001183784,2.0,230.3,230.19,8.23333692]
[1734001183987,8.23333692,230.26,230.17,2.0]
[1734001184281,2.0,230.25,230.18,13.57861995]
[1734001184486,2.0,230.25,230.18,8.23333692]
[1734001185686,2.1713,230.19,230.16,8.23333692]
[1734001185883,2.1713,230.19,230.17,5.3499876]
[1734001186084,2.1713,230.19,230.16,8.23333692]
[1734001186288,2.1713,230.19,230.17,5.34980176]
[1734001186492,2.171,230.23,230.18,8.23333692]
[1734001186791,2.171,230.23,230.22,8.23333692]
[1734001188189,2.171,230.23,230.2,8.23333692]
[1734001189185,2.171,230.23,230.21,5.35701206]
[1734001189387,2.171,230.23,230.2,8.23333692]
[1734001189693,2.171,230.23,230.21,5.35701206]
[1734001189989,2.171,230.23,230.2,8.23333692]
[1734001190388,2.171,230.23,230.21,5.35684506]
[1734001190592,2.171,230.23,230.2,8.23333692]
[1734001191189,2.171,230.22,230.21,5.35933347]
[1734001191390,2.171,230.22,230.19,8.23333692]
[1734001191591,2.0,230.22,230.2,5.35974779]
[1734001191789,2.1713,230.19,230.17,8.23333692]
[1734001191986,2.1713,230.19,230.18,5.35948175]
[1734001193093,2.1714,230.18,230.15,8.23333692]
[1734001193597,2.1714,230.18,230.16,5.36268584]
[1734001193796,8.23333692,230.2,230.17,5.36268584]
[1734001193997,8.23333692,230.2,230.12,9.85363692]
[1734001194195,8.23333692,230.2,230.13,5.36369855]
[1734001194395,8.23333692,230.2,230.14,5.36369855]
[1734001194595,8.23333692,230.2,230.12,9.85363692]
[1734001194596,2.1716,230.16,230.15,5.36369855]
[1734001195201,2.1717,230.15,230.08,2.1723]
[1734001195499,2.0,230.17,230.1,5.363747]
[1734001195703,2.1719,230.14,230.11,5.363747]
[1734001195898,2.0,230.17,230.12,5.363747]
[1734001196093,2.0,230.17,230.13,5.363747]
[1734001196295,2.0,230.17,230.09,0.34825]
[1734001196296,2.0,230.17,230.14,5.362648]
[1734001196597,2.0,230.17,230.09,8.58158692]
[1734001196797,2.1719,230.14,230.1,5.36267026]
[1734001196991,2.1719,230.14,230.11,5.36267026]
[1734001197201,2.1719,230.14,230.12,5.36267026]
[1734001197503,2.1719,230.14,230.13,5.36267026]
[1734001199903,2.1719,230.14,230.11,8.23333692]
[1734001200306,2.1719,230.14,230.12,5.35957642]
[1734001200506,2.1719,230.14,230.09,2.1722]
[1734001200507,2.1719,230.14,230.13,5.35957642]
[1734001200810,2.0,230.17,230.13,5.35957642]
[1734001201007,184.5278053,230.27,230.14,5.35957642]
[1734001201008,2.1717,230.16,230.14,5.35957642]
[1734001201305,2.0,230.18,230.15,5.35821716]
[1734001201607,2.0,230.18,230.12,8.23333692]
[1734001202005,2.0,230.18,230.13,5.3575541]
[1734001202308,2.0,230.18,230.14,5.3575541]
[1734001202611,2.0,230.18,230.15,5.35803581]
[1734001202810,2.0,230.18,230.12,8.23333692]
[1734001202999,3.2984,230.27,230.16,8.23333692]
[1734001203204,10.23333692,230.26,230.18,8.23333692]
[1734001203507,10.23333692,230.26,230.2,8.23333692]
[1734001203900,2.1709,230.24,230.2,8.23333692]
[1734001204203,10.23333692,230.26,230.18,10.40463692]
[1734001204411,2.171,230.23,230.19,5.35693698]
[1734001204610,2.171,230.23,230.2,5.35693698]
[1734001204812,2.171,230.23,230.18,8.23333692]
[1734001205109,2.171,230.23,230.19,5.35570321]
[1734001205410,2.171,230.23,230.2,5.35570321]
[1734001205709,2.171,230.23,230.18,8.23333692]
[1734001205910,2.171,230.23,230.19,5.35725252]
[1734001206111,2.171,230.23,230.2,5.35725252]
[1734001206313,2.171,230.23,230.18,8.23333692]
[1734001206514,2.171,230.23,230.19,5.35839875]
[1734001206708,2.171,230.23,230.2,5.35839875]
[1734001207012,2.171,230.23,230.18,8.23333692]
[1734001207200,2.171,230.23,230.19,5.35697617]
[1734001207401,2.171,230.23,230.2,5.35697617]
[1734001207606,2.171,230.23,230.18,8.23333692]
[1734001207806,2.171,230.23,230.19,5.35695983]
[1734001208011,2.171,230.23,230.18,8.23333692]
[1734001208208,2.171,230.22,230.2,5.35612156]
[1734001208403,2.0,230.21,230.19,5.35612156]
[1734001208617,8.23333692,230.2,230.19,5.35612156]
[1734001209004,2.1715,230.17,230.12,10.40523692]
[1734001209210,2.1715,230.17,230.13,5.35847558]
[1734001209517,2.1717,230.16,230.14,5.35847558]
[1734001209813,8.23333692,230.18,230.15,5.35847558]
[1734001210012,8.23333692,230.18,230.16,5.35847558]
[1734001210209,2.1717,230.15,230.11,8.23333692]
[1734001210411,2.1717,230.15,230.12,5.36039624]
[1734001210715,2.1717,230.15,230.11,8.23333692]
[1734001210716,2.1717,230.15,230.13,5.36039624]
[1734001210905,2.1717,230.15,230.14,5.36039624]
[1734001211613,10.23333692,230.16,230.07,1.651]
[1734001211913,10.23333692,230.16,230.08,5.35832903]
[1734001211914,2.1723,230.09,230.08,5.35832903]
[1734001214211,2.1723,230.09,230.03,2.1728]
[1734001214414,2.1723,230.09,230.08,5.34964767]
[1734001214609,2.1723,230.09,230.04,5.34964767]
[1734001215016,2.1723,230.09,230.08,5.34964767]
[1734001216417,2.1723,230.09,230.08,5.42678773]
[1734001217617,2.1723,230.09,230.03,10.40613692]
[1734001217822,10.23333692,230.11,230.08,5.42475318]
[1734001218023,8.23333692,230.09,230.08,5.42475318]
[1734001218522,10.40563692,230.09,230.08,5.42475318]
[1734001221124,2.1723,230.09,230.05,8.23333692]
[1734001221524,2.1723,230.09,230.06,5.41333487]
[1734001221818,2.1723,230.09,230.0,1.6386]
[1734001221819,1.7071,230.18,230.07,13.64245231]
[1734001222022,10.23333692,230.17,230.09,8.23333692]
[1734001222220,10.23333692,230.17,230.11,8.23333692]
[1734001222622,2.0,230.17,230.11,8.23333692]
[1734001222819,2.0,230.18,230.12,5.40462377]
[1734001223032,2.0,230.18,230.11,8.23333692]
[1734001223320,8.23333692,230.2,230.13,8.23333692]
[1734001223526,5.2501486,230.23,230.15,8.23333692]
[1734001223723,2.0,230.22,230.15,8.23333692]
[1734001223924,2.1713,230.2,230.15,8.23333692]
[1734001224430,2.1713,230.2,230.16,5.40694096]
[1734001224725,2.1713,230.2,230.15,8.23333692]
[1734001224924,2.1713,230.19,230.16,5.40850398]
[1734001225123,2.1713,230.19,230.15,8.23333692]
[1734001225326,2.1713,230.19,230.16,5.40955727]
[1734001225525,2.1712,230.2,230.15,8.23333692]
[1734001225726,2.1712,230.2,230.16,5.40959121]
[1734001225928,2.1712,230.2,230.15,8.23333692]
[1734001226228,2.1712,230.2,230.16,5.40936085]
[1734001226423,2.1711,230.21,230.17,5.40936085]
[1734001226624,2.1711,230.21,230.15,8.23333692]
[1734001226824,2.1711,230.21,230.16,5.40993204]
[1734001227032,2.1711,230.21,230.15,8.23333692]
[1734001227325,1.6761,230.31,230.19,8.23333692]
[1734001227532,2.0,230.3,230.24,8.23333692]
[1734001227924,2.0,230.3,230.22,2.1709]
[1734001228121,2.0,230.3,230.24,8.23333692]
[1734001228527,2.1705,230.28,230.23,5.40481931]
[1734001228724,8.23333692,230.28,230.24,5.40474718]
[1734001228920,8.23333692,230.28,230.23,5.40481931]
[1734001229120,2.1705,230.28,230.23,5.40481931]
[1734001229327,2.0,230.3,230.24,8.23333692]
[1734001229624,2.1705,230.29,230.23,5.40481931]
[1734001229927,8.23333692,230.29,230.24,5.40426261]
[1734001230131,8.23333692,230.29,230.25,5.40426261]
[1734001230328,2.1704,230.29,230.25,5.40426261]
[1734001230526,2.1704,230.29,230.24,8.23333692]
[1734001230726,2.1704,230.29,230.25,5.40184562]
[1734001230926,10.40373692,230.29,230.23,5.40481931]
[1734001231220,8.23333692,230.29,230.24,5.40083384]
[1734001231427,8.23333692,230.29,230.21,8.23333692]
[1734001231633,2.1707,230.26,230.22,5.40046014]
[1734001231930,2.0,230.31,230.19,5.3659]
[1734001231931,8.23333692,230.27,230.23,5.40046014]
[1734001232127,8.23333692,230.27,230.2,8.23333692]
[1734001232327,2.1709,230.24,230.21,14.04323616]
[1734001232527,2.1709,230.24,230.19,3.1946]
[1734001232528,2.0,230.26,230.22,5.40124468]
[1734001232724,2.0,230.26,230.23,5.40222852]
[1734001232923,10.40373692,230.3,230.24,8.23333692]
[1734001233224,2.0,230.29,230.24,8.23333692]
[1734001233431,2.0,230.29,230.25,8.23333692]
[1734001234826,2.0,230.29,230.26,5.39526579]
[1734001235028,2.0,230.29,230.25,8.23333692]
[1734001235223,2.0,230.29,230.19,3.1946]
[1734001235224,5.26379561,230.35,230.27,8.23333692]
[1734001235526,286.819207,230.49,230.22,2.0]
[1734001235527,1.6335,230.44,230.29,8.23333692]
[1734001235726,10.23333692,230.38,230.29,8.23333692]
[1734001235934,8.23333692,230.36,230.29,8.23333692]
[1734001236431,2.0,230.35,230.29,8.23333692]
[1734001237128,2.0,230.35,230.24,12.83601222]
[1734001237324,2.17,230.34,230.28,2.1704]
[1734001237723,4.1698,230.35,230.29,2.1703]
[1734001237924,2.0,230.38,230.27,14.83601222]
[1734001238131,1.6335,230.44,230.3,12.83601222]
[1734001238324,5.14124661,230.42,230.31,5.38142452]
[1734001238632,5.14124661,230.42,230.28,4.9396]
[1734001238932,5.14124661,230.42,230.29,5.38156266]
[1734001239131,5.14124661,230.42,230.3,5.38156266]
[1734001239337,5.14124661,230.42,230.28,4.9396]
[1734001239532,45.18,230.49,230.3,12.83601222]
[1734001239735,14.83601222,230.48,230.33,12.83601222]
[1734001239931,2.0,230.48,230.33,12.83601222]
[1734001240132,2.0,230.48,230.36,2.1697]
[1734001240432,7.17056562,230.48,230.33,12.83601222]
[1734001240728,2.0,230.48,230.34,5.36988876]
[1734001240933,12.83601222,230.51,230.33,12.83601222]
[1734001240934,2.0,230.47,230.33,12.83601222]
[1734001241133,2.169,230.44,230.34,7.53965278]
[1734001241434,2.0,230.47,230.34,2.1698]
[1734001241836,2.1693,230.4,230.34,2.1698]
[1734001242131,2.0,230.42,230.33,12.83601222]
[1734001242434,2.0,230.42,230.28,4.9396]
[1734001242435,14.83601222,230.42,230.29,2.0]
[1734001243232,14.83601222,230.42,230.3,2.1703]
[1734001243737,14.83601222,230.42,230.29,2.0]
[1734001244537,14.83601222,230.42,230.28,4.9396]
[1734001244732,2.17,230.34,230.28,4.9396]
[1734001246234,2.17,230.34,230.29,2.1704]
[1734001246427,2.17,230.33,230.28,4.9396]
[1734001247635,2.17,230.33,230.28,7.11]
[1734001248227,2.0,230.36,230.28,1.6228]
[1734001248437,2.0,230.36,230.22,5.2931]
[1734001248438,14.83601222,230.36,230.22,5.2931]
[1734001248638,12.83601222,230.33,230.22,4.9567]
[1734001248842,12.83601222,230.33,230.23,5.36487165]